fUST/lending_fUST_20250824
["ID","MTS","AMOUNT","RATE_DAILY","PERIOD"]
[381067719,1755988251518,-461.38864696,0.00054794,120]
[381067720,1755988251529,-480.0,0.00054794,120]
[381067721,1755988251538,-480.0,0.00054794,120]
[381067722,1755988251548,-1256.06,0.00054794,30]
[381067723,1755988251558,-564.24730544,0.00054794,120]
[381067724,1755988251567,-1520.45,0.00054794,120]
[381067725,1755988251577,-480.0,0.00054794,120]
[381067726,1755988251586,-480.0,0.00054794,120]
[381067727,1755988251595,-480.0,0.00054794,120]
[381067728,1755988251605,-480.0,0.00054794,120]
[381067729,1755988251615,-480.0,0.00054794,120]
[381067730,1755988251624,-151.0,0.00054794,120]
[381067731,1755988251633,-480.0,0.00054794,120]
[381067732,1755988251643,-151.0,0.00054794,120]
[381067733,1755988251652,-480.0,0.00054794,120]
[381067734,1755988251661,-480.0,0.00054794,120]
[381067735,1755988251671,-151.0,0.00054794,120]
[381067736,1755988251680,-2517.05,0.00054794,120]
[381067737,1755988251689,-480.0,0.00054794,120]
[381067738,1755988251699,-1925.61,0.00054794,120]
[381067739,1755988251709,-1265.63,0.00054794,120]
[381067740,1755988251718,-480.0,0.00054794,120]
[381067741,1755988251727,-151.0,0.00054794,120]
[381067742,1755988251736,-151.0,0.00054794,120]
[381067743,1755988251746,-151.0,0.00054794,120]
[381067744,1755988251755,-229.549536,0.00054794,120]
[381067745,1755988251764,-480.0,0.00054794,120]
[381067746,1755988251773,-1661.49,0.00054794,120]
[381067747,1755988251782,-480.0,0.00054794,120]
[381067748,1755988251792,-6780.83,0.00054794,120]
[381067749,1755988251802,-379.09354685,0.00054794,30]
[381067750,1755988251811,-480.0,0.00054794,120]
[381067751,1755988251821,-151.0,0.00054794,120]
[381067752,1755988251830,-152.387388,0.00054794,120]
[381067753,1755988251839,-345.58303723,0.00054794,120]
[381067754,1755988251848,-4077.46,0.00054794,120]
[381067755,1755988251857,-810.42,0.00054794,120]
[381067756,1755988251867,-151.0,0.00054794,120]
[381067757,1755988251877,-151.0,0.00054794,120]
[381067758,1755988251886,-151.0,0.00054794,120]
[381067759,1755988251896,-151.0,0.00054794,120]
[381067760,1755988251905,-480.0,0.00054794,120]
[381067761,1755988251915,-480.0,0.00054794,120]
[381067762,1755988251929,-151.0,0.00054794,120]
[381067763,1755988251939,-480.0,0.00054794,120]
[381067764,1755988251948,-151.0,0.00054794,120]
[381067765,1755988251958,-151.0,0.00054794,120]
[381067766,1755988251967,-151.0,0.00054794,120]
[381067767,1755988251976,-151.0,0.00054794,120]
[381067768,1755988251986,-480.0,0.00054794,120]
[381067769,1755988251998,-151.0,0.00054794,120]
[381067770,1755988252011,-226.96915,0.00054794,120]
[381067771,1755988252021,-480.0,0.00054794,120]
[381067772,1755988252030,-480.0,0.00054794,120]
[381067773,1755988252040,-480.0,0.00054794,120]
[381067774,1755988252049,-480.0,0.00054794,120]
[381067775,1755988252059,-151.0,0.00054794,120]
[381067776,1755988252068,-480.0,0.00054794,120]
[381067777,1755988252077,-480.0,0.00054794,120]
[381067778,1755988252087,-610.24,0.00054794,120]
[381067779,1755988252096,-480.0,0.00054794,120]
[381067780,1755988252106,-480.0,0.00054794,120]
[381067781,1755988252116,-480.0,0.00054794,120]
[381067782,1755988252125,-480.0,0.00054794,120]
[381067783,1755988252135,-151.0,0.00054794,120]
[381067784,1755988252144,-151.0,0.00054794,120]
[381067785,1755988252154,-1534.79,0.00054794,120]
[381067786,1755988252163,-151.0,0.00054794,120]
[381067787,1755988252173,-1850.74,0.00054794,120]
[381067788,1755988252183,-151.0,0.00054794,120]
[381067789,1755988252192,-286.005737,0.00054794,120]
[381067790,1755988252201,-480.0,0.00054794,120]
[381067791,1755988252210,-151.310633,0.00054794,120]
[381067792,1755988252220,-480.0,0.00054794,120]
[381067793,1755988252230,-772.3,0.00054794,120]
[381067794,1755988252242,-480.0,0.00054794,120]
[381067795,1755988252251,-480.0,0.00054794,120]
[381067796,1755988252264,-480.0,0.00054794,120]
[381067797,1755988252274,-614.53,0.00054794,120]
[381067798,1755988252283,-480.0,0.00054794,120]
[381067799,1755988252293,-151.0,0.00054794,120]
[381067800,1755988252303,-151.0,0.00054794,120]
[381067801,1755988252312,-151.0,0.00054794,120]
[381067802,1755988252322,-181.2,0.00054794,120]
[381067803,1755988252331,-480.0,0.00054794,120]
[381067804,1755988252340,-480.0,0.00054794,120]
[381067805,1755988252350,-480.0,0.00054794,120]
[381067806,1755988252359,-480.0,0.00054794,120]
[381067807,1755988252368,-650.24,0.00054794,120]
[381067808,1755988252378,-480.0,0.00054794,20]
[381067809,1755988252387,-656.36,0.00054794,120]
[381067810,1755988252396,-480.0,0.00054794,120]
[381067811,1755988252406,-480.0,0.00054794,30]
[381067812,1755988252415,-480.0,0.00054794,120]
[381067813,1755988252425,-480.0,0.00054794,120]
[381067814,1755988252434,-463.77820393,0.00054794,120]
[381067815,1755988252444,-480.0,0.00054794,120]
[381067816,1755988252454,-480.0,0.00054794,120]
[381067817,1755988252464,-480.0,0.00054794,120]
[381067818,1755988252474,-3405.09,0.00054794,120]
[381067819,1755988252484,-480.0,0.00054794,120]
[381067820,1755988252494,-851.88,0.00054794,120]
[381067821,1755988252503,-480.0,0.00054794,120]
[381067822,1755988252512,-481.67151324,0.00054794,120]
[381067823,1755988252522,-151.0,0.00054794,120]
[381067824,1755988252531,-151.0,0.00054794,120]
[381067825,1755988252541,-151.0,0.00054794,120]
[381067826,1755988252550,-151.0,0.00054794,120]
[381067827,1755988252560,-151.0,0.00054794,120]
[381067828,1755988252569,-151.0,0.00054794,120]
[381067829,1755988252579,-151.0,0.00054794,120]
[381067830,1755988252589,-151.0,0.00054794,120]
[381067831,1755988252599,-151.0,0.00054794,120]
[381067832,1755988252608,-151.0,0.00054794,120]
[381067833,1755988252618,-151.0,0.00054794,120]
[381067834,1755988252628,-151.0,0.00054794,120]
[381067835,1755988252637,-173.570369,0.00054794,120]
[381067836,1755988252646,-5058.02,0.00054794,120]
[381067837,1755988252656,-462.47203191,0.00054794,120]
[381067838,1755988252665,-480.0,0.00054794,120]
[381067839,1755988252675,-480.0,0.00054794,120]
[381067840,1755988252684,-358.0690357,0.00054794,120]
[381067841,1755988252693,-840.5,0.00054794,120]
[381067842,1755988252703,-2712.33,0.00054794,120]
[381067843,1755988252713,-480.0,0.00054794,120]
[381067844,1755988252722,-507.98,0.00054794,120]
[381067845,1755988252731,-480.0,0.00054794,120]
[381067846,1755988252740,-480.0,0.00054794,120]
[381067847,1755988252750,-480.0,0.00054794,120]
[381067848,1755988252760,-480.0,0.00054794,120]
[381067849,1755988252769,-1868.82,0.00054794,120]
[381067850,1755988252778,-480.0,0.00054794,2]
[381067851,1755988252788,-480.52392482,0.00054794,120]
[381067852,1755988252798,-225.083711,0.00054794,120]
[381067853,1755988252807,-225.083711,0.00054794,120]
[381067854,1755988252816,-1091.93,0.00054794,120]
[381067855,1755988252825,-225.083711,0.00054794,120]
[381067856,1755988252835,-225.083711,0.00054794,120]
[381067857,1755988252844,-480.0,0.00054794,120]
[381067858,1755988252853,-225.083711,0.00054794,120]
[381067859,1755988252863,-225.083711,0.00054794,120]
[381067860,1755988252872,-480.0,0.00054794,120]
[381067861,1755988252881,-480.0,0.00054794,120]
[381067862,1755988252890,-225.083711,0.00054794,120]
[381067863,1755988252899,-1885.44,0.00054794,120]
[381067864,1755988252908,-225.083711,0.00054794,120]
[381067865,1755988252918,-225.083711,0.00054794,120]
[381067866,1755988252927,-225.083711,0.00054794,120]
[381067867,1755988252936,-225.083711,0.00054794,120]
[381067868,1755988252945,-225.083711,0.00054794,120]
[381067869,1755988252955,-480.0,0.00054794,120]
[381067870,1755988252964,-225.083711,0.00054794,120]
[381067871,1755988252973,-480.0,0.00054794,20]
[381067872,1755988252982,-225.083711,0.00054794,120]
[381067873,1755988252991,-225.083711,0.00054794,120]
[381067874,1755988253001,-225.083711,0.00054794,120]
[381067875,1755988253010,-225.083711,0.00054794,120]
[381067876,1755988253020,-225.083711,0.00054794,120]
[381067877,1755988253030,-225.083711,0.00054794,120]
[381067878,1755988253040,-225.083709,0.00054794,120]
[381067879,1755988253049,-480.0,0.00054794,120]
[381067880,1755988253058,-1032.02,0.00054794,120]
[381067881,1755988253067,-2332.11,0.00054794,120]
[381067882,1755988253077,-480.0,0.00054794,120]
[381067883,1755988253086,-151.0,0.00054794,120]
[381067884,1755988253095,-480.0,0.00054794,120]
[381067885,1755988253104,-151.0,0.00054794,120]
[381067886,1755988253114,-151.0,0.00054794,120]
[381067887,1755988253124,-189.288119,0.00054794,120]
[381067888,1755988253133,-1361.96,0.00054794,120]
[381067889,1755988253142,-39.64134087,0.00054794,120]
[381067890,1755988254289,-37.68099621,0.00029276,2]
[381067891,1755988255746,-422.748628,0.00029276,2]
[381067892,1755988311854,194.8627067,0.000199,2]
[381067893,1755988311884,57.01076285,0.000199,2]
[381067894,1755988312215,251.87346938,0.00021627,2]
[381067895,1755988312320,251.87346938,0.00023353,2]
[381067896,1755988312524,251.87346938,0.00026806,6]
[381067897,1755988312622,251.87346938,0.0002508,2]
[381067898,1755988383515,868.41532542,0.000253,2]
[381067899,1755988440906,5000.0,0.0002685,2]
[381067900,1755988456731,5000.0,0.0002685,2]
[381067901,1755988472829,5000.0,0.0002685,2]
[381067902,1755988477089,240.05954735,0.000199,2]
[381067903,1755988477768,240.05954729,0.00021627,2]
[381067904,1755988477856,240.05954729,0.0002508,2]
[381067905,1755988477966,240.05954729,0.00023353,2]
[381067906,1755988478019,240.05954729,0.00026806,6]
[381067907,1755988488943,1866.7822977,0.0002685,2]
[381067908,1755988488966,3133.2177023,0.0002685,2]
[381067909,1755988504272,5000.0,0.0002685,2]
[381067910,1755988642191,208.19289917,0.000199,2]
[381067911,1755988642596,208.19289896,0.0002508,2]
[381067912,1755988642644,208.19289896,0.00021627,2]
[381067913,1755988642800,208.19289896,0.00023353,2]
[381067914,1755988642952,208.19289896,0.00026806,6]
[381067915,1755988799787,160.484735,0.00013699,2]
[381067916,1755988807657,346.98816492,0.0002249,2]
[381067917,1755988807698,346.98816492,0.00024216,2]
[381067918,1755988807790,346.98816492,0.00025943,4]
[381067920,1755988973466,277.59053194,0.0002249,2]
[381067921,1755988973768,277.59053194,0.00024216,2]
[381067922,1755988973815,277.59053194,0.00025943,4]
[381067924,1755989138328,222.07242556,0.0002249,2]
[381067925,1755989138730,222.07242556,0.00024216,2]
[381067926,1755989138843,222.07242556,0.00025943,4]
[381067928,1755989248112,-222.07242556,0.00027669,8]
[381067929,1755989248133,-177.5520083,0.000291,2]
[381067930,1755989248156,-154.01935154,0.00029167,2]
[381067931,1755989248176,-217.0334113,0.00029192,2]
[381067932,1755989248198,-1200.0,0.00029199,2]
[381067933,1755989248219,-378.7146852,0.000292,2]
[381067934,1755989303396,246.42513878,0.0002249,2]
[381067935,1755989303704,246.42513878,0.00024216,2]
[381067936,1755989303809,246.42513878,0.00025943,4]
[381067937,1755989310355,670.2205265,0.0002685,2]
[381067938,1755989327437,672.28180599,0.0002685,2]
[381067968,1755989432701,-246.42513878,0.00027669,8]
[381067970,1755989432713,-300.0,0.00029199,2]
[381067973,1755989432723,-300.0,0.00029199,2]
[381067975,1755989432732,-300.0,0.00029199,2]
[381067976,1755989432741,-300.0,0.00029199,2]
[381067978,1755989432750,-300.0,0.00029199,2]
[381067980,1755989432760,-2245.9383134,0.000292,2]
[381067983,1755989432772,-2059.51497072,0.000292,2]
[381067985,1755989432781,-217.0334113,0.000292,2]
[381067987,1755989432790,-232.37252479,0.00029245,2]
[381067988,1755989432799,-844.50316758,0.00029251,2]
[381067990,1755989432807,-376.14580871,0.00029251,2]
[381067991,1755989432816,-160.0,0.00029252,2]
[381067993,1755989432826,-160.0,0.00029253,2]
[381067995,1755989432835,-160.0,0.00029253,2]
[381067996,1755989432844,-1200.0,0.00029254,2]
[381067998,1755989432853,-50000.0,0.00029257,2]
[381068000,1755989432862,-207.445,0.0002926,22]
[381068003,1755989432871,-7286.74923032,0.00029266,2]
[381068005,1755989432880,-464.76643638,0.00029275,2]
[381068007,1755989432889,-2212.62695527,0.00029276,2]
[381068040,1755989438697,-6594.80932481,0.00029276,2]
[381068041,1755989438709,-360732.13409571,0.00029276,2]
[381068042,1755989438719,-161.57,0.000293,7]
[381068043,1755989438728,-319.42,0.000293,7]
[381068044,1755989438737,-500.0,0.000293,5]
[381068045,1755989438747,-501.58998718,0.000293,5]
[381068046,1755989438756,-524.9338034,0.000293,5]
[381068047,1755989438765,-500.0,0.000293,5]
[381068048,1755989438774,-500.0,0.000293,5]
[381068049,1755989438783,-500.0,0.000293,5]
[381068050,1755989438793,-500.0,0.000293,5]
[381068051,1755989438802,-502.31631118,0.000293,5]
[381068052,1755989438811,-500.0,0.000293,5]
[381068053,1755989438820,-500.0,0.000293,5]
[381068054,1755989438830,-552.19222738,0.000293,5]
[381068055,1755989438839,-510.08515141,0.000293,5]
[381068056,1755989438851,-246.42513878,0.00029396,11]
[381068057,1755989438861,-250.0,0.00029587,10]
[381068058,1755989438870,-250.0,0.00029587,10]
[381068059,1755989438879,-250.0,0.00029587,10]
[381068060,1755989438889,-362.420363,0.00029587,10]
[381068061,1755989438899,-1000.0,0.00029848,5]
[381068062,1755989438909,-1000.0,0.00029848,5]
[381068063,1755989438919,-561.50936605,0.00029848,5]
[381068064,1755989438931,-279.39570652,0.00029848,5]
[381068065,1755989438941,-1500.0,0.00030396,5]
[381068066,1755989438950,-199.0,0.000305,120]
[381068067,1755989438960,-199.0,0.000305,120]
[381068068,1755989438969,-199.0,0.000306,120]
[381068069,1755989438978,-199.0,0.000306,120]
[381068070,1755989438987,-199.0,0.000307,120]
[381068071,1755989438996,-199.0,0.000307,120]
[381068072,1755989439005,-199.0,0.000308,120]
[381068073,1755989439015,-199.0,0.000308,120]
[381068074,1755989439024,-199.0,0.000309,120]
[381068075,1755989439033,-246.42513878,0.00031123,15]
[381068076,1755989439043,-246.42513883,0.00032849,19]
[381068077,1755989439052,-246.42513878,0.00032849,19]
[381068078,1755989439061,-246.42513878,0.00034576,23]
[381068079,1755989439070,-246.42513878,0.00036302,26]
[381068080,1755989439080,-246.42513878,0.00038029,30]
[381068081,1755989439089,-246.42513878,0.00039755,34]
[381068082,1755989439098,-168.0,0.00040921,2]
[381068083,1755989439108,-168.0,0.00040942,2]
[381068084,1755989439117,-168.0,0.00041151,2]
[381068085,1755989439127,-168.0,0.00041203,2]
[381068086,1755989439136,-246.42513878,0.00041482,37]
[381068087,1755989439145,-4305.4532841,0.00042084,10]
[381068088,1755989439154,-246.42513878,0.00043208,41]
[381068089,1755989439164,-168.0,0.00044131,2]
[381068090,1755989439173,-168.0,0.00044663,2]
[381068091,1755989439183,-168.0,0.00044735,120]
[381068092,1755989439191,-246.42513878,0.00044935,45]
[381068093,1755989439201,-168.0,0.00047014,30]
[381068094,1755989439210,-319.42,0.000471,14]
[381068095,1755989439219,-199.0,0.000508,10]
[381068096,1755989439228,-188.9947005,0.00051632,2]
[381068097,1755989439238,-500.0,0.00052602,60]
[381068098,1755989439247,-161.57,0.000527,7]
[381068099,1755989439256,-500.0,0.0005315,60]
[381068100,1755989439265,-500.0,0.00053698,60]
[381068101,1755989439275,-910.84365379,0.00054684,4]
[381068102,1755989439284,-500.0,0.00054684,60]
[381068103,1755989439293,-1593.14075512,0.00054684,60]
[381068104,1755989439303,-1000.0,0.00054684,2]
[381068105,1755989439313,-25000.0,0.00054688,120]
[381068106,1755989439322,-25000.0,0.00054688,120]
[381068107,1755989439331,-160.0,0.00054694,120]
[381068108,1755989439341,-529.05847148,0.00054694,120]
[381068109,1755989439351,-36441.87611877,0.00054694,120]
[381068110,1755989439360,-150.0,0.000547,120]
[381068111,1755989439369,-10019.2801917,0.00054784,4]
[381068112,1755989439378,-593.92,0.00054784,30]
[381068113,1755989439388,-1000.0,0.00054793,120]
[381068114,1755989439397,-500.0,0.00054794,120]
[381068115,1755989439407,-480.0,0.00054794,30]
[381068116,1755989439416,-480.0,0.00054794,120]
[381068117,1755989439425,-480.0,0.00054794,120]
[381068118,1755989439435,-480.0,0.00054794,120]
[381068119,1755989439445,-480.0,0.00054794,120]
[381068120,1755989439454,-480.0,0.00054794,120]
[381068121,1755989439464,-480.0,0.00054794,120]
[381068122,1755989439473,-480.0,0.00054794,120]
[381068123,1755989439482,-480.0,0.00054794,120]
[381068124,1755989439492,-480.0,0.00054794,120]
[381068125,1755989439501,-480.0,0.00054794,120]
[381068126,1755989439511,-480.0,0.00054794,120]
[381068127,1755989439520,-552.89462398,0.00054794,120]
[381068128,1755989439529,-480.0,0.00054794,120]
[381068129,1755989439538,-480.0,0.00054794,120]
[381068130,1755989439547,-480.0,0.00054794,120]
[381068131,1755989439557,-402.13956481,0.00054794,120]
[381068132,1755989439566,-411.18629182,0.00054794,120]
[381068133,1755989439576,-480.0,0.00054794,120]
[381068134,1755989439587,-516.80636787,0.00054794,120]
[381068135,1755989439596,-480.0,0.00054794,120]
[381068136,1755989439605,-480.0,0.00054794,120]
[381068137,1755989439614,-480.0,0.00054794,120]
[381068138,1755989439623,-480.0,0.00054794,120]
[381068139,1755989439633,-481.13530276,0.00054794,120]
[381068140,1755989439642,-480.0,0.00054794,120]
[381068141,1755989439651,-480.0,0.00054794,120]
[381068142,1755989439661,-2235.09,0.00054794,120]
[381068143,1755989439671,-480.0,0.00054794,120]
[381068144,1755989439680,-480.0,0.00054794,120]
[381068145,1755989439689,-480.0,0.00054794,120]
[381068146,1755989439699,-151.0,0.00054794,120]
[381068147,1755989439708,-151.0,0.00054794,120]
[381068148,1755989439717,-480.0,0.00054794,120]
[381068149,1755989439726,-480.0,0.00054794,120]
[381068150,1755989439735,-480.0,0.00054794,120]
[381068151,1755989439745,-480.0,0.00054794,120]
[381068152,1755989439754,-663.6,0.00054794,120]
[381068153,1755989439763,-480.0,0.00054794,120]
[381068154,1755989439772,-431.5693994,0.00054794,120]
[381068155,1755989439782,-463.29189966,0.00054794,120]
[381068156,1755989439791,-151.0,0.00054794,14]
[381068157,1755989439800,-151.0,0.00054794,14]
[381068158,1755989439809,-770.56,0.00054794,120]
[381068159,1755989439818,-480.0,0.00054794,120]
[381068160,1755989439827,-480.0,0.00054794,120]
[381068161,1755989439837,-480.0,0.00054794,120]
[381068162,1755989439846,-480.0,0.00054794,120]
[381068163,1755989439855,-480.0,0.00054794,120]
[381068164,1755989439864,-480.0,0.00054794,120]
[381068165,1755989439873,-480.0,0.00054794,90]
[381068166,1755989439882,-151.0,0.00054794,120]
[381068167,1755989439891,-480.0,0.00054794,120]
[381068168,1755989439901,-151.982116,0.00054794,120]
[381068169,1755989439911,-480.0,0.00054794,120]
[381068170,1755989439920,-480.0,0.00054794,120]
[381068171,1755989439929,-480.0,0.00054794,120]
[381068172,1755989439938,-480.0,0.00054794,120]
[381068173,1755989439948,-480.0,0.00054794,120]
[381068174,1755989439957,-480.0,0.00054794,120]
[381068175,1755989439967,-480.0,0.00054794,120]
[381068176,1755989439977,-151.0,0.00054794,120]
[381068177,1755989439986,-480.0,0.00054794,120]
[381068178,1755989439996,-151.0,0.00054794,120]
[381068179,1755989440005,-151.0,0.00054794,120]
[381068180,1755989440014,-480.0,0.00054794,120]
[381068181,1755989440023,-480.0,0.00054794,120]
[381068182,1755989440032,-480.0,0.00054794,120]
[381068183,1755989440041,-424.11204411,0.00054794,120]
[381068184,1755989440050,-480.0,0.00054794,120]
[381068185,1755989440059,-480.0,0.00054794,120]
[381068186,1755989440068,-480.0,0.00054794,120]
[381068187,1755989440077,-242.60370036,0.00054794,120]
[381068188,1755989440087,-480.0,0.00054794,120]
[381068189,1755989440095,-711.76,0.00054794,120]
[381068190,1755989440104,-480.0,0.00054794,120]
[381068191,1755989440113,-480.0,0.00054794,120]
[381068192,1755989440123,-480.0,0.00054794,120]
[381068193,1755989440132,-1470.84,0.00054794,120]
[381068194,1755989440141,-480.0,0.00054794,120]
[381068195,1755989440151,-480.0,0.00054794,120]
[381068196,1755989440160,-480.0,0.00054794,120]
[381068197,1755989440169,-480.0,0.00054794,120]
[381068198,1755989440179,-480.0,0.00054794,120]
[381068199,1755989440188,-480.0,0.00054794,120]
[381068200,1755989440197,-466.72576641,0.00054794,120]
[381068201,1755989440206,-480.0,0.00054794,20]
[381068202,1755989440215,-480.0,0.00054794,120]
[381068203,1755989440224,-480.0,0.00054794,120]
[381068204,1755989440233,-480.0,0.00054794,120]
[381068205,1755989440243,-480.0,0.00054794,120]
[381068206,1755989440252,-480.0,0.00054794,120]
[381068207,1755989440261,-481.54372366,0.00054794,120]
[381068208,1755989440271,-480.0,0.00054794,120]
[381068209,1755989440280,-267.27606373,0.00054794,120]
[381068210,1755989440290,-480.0,0.00054794,120]
[381068211,1755989440300,-465.34265397,0.00054794,120]
[381068212,1755989440309,-816.38,0.00054794,120]
[381068213,1755989440319,-480.0,0.00054794,120]
[381068214,1755989440329,-480.0,0.00054794,120]
[381068215,1755989440339,-480.0,0.00054794,120]
[381068216,1755989440349,-151.0,0.00054794,120]
[381068217,1755989440358,-151.0,0.00054794,120]
[381068218,1755989440368,-480.0,0.00054794,120]
[381068219,1755989440378,-462.64825697,0.00054794,120]
[381068220,1755989440387,-480.0,0.00054794,120]
[381068221,1755989440396,-480.0,0.00054794,120]
[381068222,1755989440405,-480.0,0.00054794,120]
[381068223,1755989440414,-480.0,0.00054794,120]
[381068224,1755989440423,-319.35,0.00054794,120]
[381068225,1755989440433,-151.0,0.00054794,120]
[381068226,1755989440442,-151.0,0.00054794,120]
[381068227,1755989440451,-463.95074091,0.00054794,120]
[381068228,1755989440461,-480.0,0.00054794,120]
[381068229,1755989440470,-480.0,0.00054794,120]
[381068230,1755989440480,-480.0,0.00054794,120]
[381068231,1755989440489,-480.0,0.00054794,120]
[381068232,1755989440498,-860.5,0.00054794,120]
[381068233,1755989440507,-480.0,0.00054794,120]
[381068234,1755989440517,-623.15,0.00054794,120]
[381068235,1755989440526,-480.0,0.00054794,120]
[381068236,1755989440535,-151.0,0.00054794,120]
[381068237,1755989440545,-151.0,0.00054794,120]
[381068238,1755989440554,-480.0,0.00054794,120]
[381068239,1755989440564,-691.79,0.00054794,120]
[381068240,1755989440573,-480.52392482,0.00054794,120]
[381068241,1755989440587,-151.0,0.00054794,120]
[381068242,1755989440596,-1773.63,0.00054794,120]
[381068243,1755989440605,-154.8745389,0.00054794,120]
[381068244,1755989440615,-480.0,0.00054794,120]
[381068245,1755989440625,-480.0,0.00054794,120]
[381068246,1755989440634,-2332.11,0.00054794,120]
[381068247,1755989440644,-480.0,0.00054794,120]
[381068249,1755989440654,-480.0,0.00054794,120]
[381068251,1755989440664,-480.0,0.00054794,120]
[381068252,1755989440673,-480.0,0.00054794,120]
[381068253,1755989440682,-615.41,0.00054794,120]
[381068254,1755989440691,-480.0,0.00054794,20]
[381068255,1755989440701,-480.0,0.00054794,120]
[381068256,1755989440711,-480.0,0.00054794,120]
[381068257,1755989440720,-740.91,0.00054794,120]
[381068258,1755989440729,-588.37390666,0.00054794,120]
[381068260,1755989440739,-480.0,0.00054794,120]
[381068261,1755989440748,-480.0,0.00054794,120]
[381068263,1755989440757,-480.0,0.00054794,120]
[381068264,1755989440765,-480.0,0.00054794,120]
[381068265,1755989440774,-480.0,0.00054794,120]
[381068266,1755989440784,-480.0,0.00054794,2]
[381068267,1755989440793,-151.0,0.00054794,120]
[381068268,1755989440801,-151.0,0.00054794,120]
[381068269,1755989440810,-480.0,0.00054794,120]
[381068270,1755989440819,-776.66,0.00054794,120]
[381068271,1755989440828,-480.0,0.00054794,120]
[381068272,1755989440837,-480.0,0.00054794,120]
[381068273,1755989440847,-480.0,0.00054794,120]
[381068274,1755989440855,-507.98,0.00054794,120]
[381068275,1755989440864,-584.81,0.00054794,120]
[381068276,1755989440874,-480.0,0.00054794,120]
[381068277,1755989440884,-480.0,0.00054794,120]
[381068278,1755989440894,-480.0,0.00054794,120]
[381068279,1755989440903,-480.0,0.00054794,120]
[381068280,1755989440912,-480.0,0.00054794,120]
[381068281,1755989441094,-480.0,0.00054794,120]
[381068282,1755989441142,-480.0,0.00054794,120]
[381068283,1755989441151,-480.0,0.00054794,120]
[381068284,1755989441161,-480.0,0.00054794,120]
[381068285,1755989441169,-706.28,0.00054794,120]
[381068286,1755989441180,-480.0,0.00054794,120]
[381068287,1755989441189,-480.0,0.00054794,120]
[381068288,1755989441198,-151.0,0.00054794,120]
[381068289,1755989441207,-151.0,0.00054794,120]
[381068290,1755989441216,-480.0,0.00054794,120]
[381068291,1755989441226,-480.0,0.00054794,120]
[381068292,1755989441235,-480.0,0.00054794,120]
[381068293,1755989441244,-480.0,0.00054794,120]
[381068294,1755989441253,-480.0,0.00054794,120]
[381068295,1755989441262,-480.0,0.00054794,120]
[381068296,1755989441271,-151.0,0.00054794,120]
[381068297,1755989441281,-151.0,0.00054794,120]
[381068298,1755989441290,-480.0,0.00054794,120]
[381068299,1755989441299,-480.0,0.00054794,120]
[381068300,1755989441309,-189.288119,0.00054794,120]
[381068301,1755989441318,-480.0,0.00054794,120]
[381068302,1755989441327,-756.5,0.00054794,120]
[381068303,1755989441336,-480.0,0.00054794,120]
[381068304,1755989441346,-151.0,0.00054794,120]
[381068305,1755989441355,-480.0,0.00054794,30]